bitfinex/quotes_BTCUSD_20251004
["timestamp","ask_amount","ask_price","bid_price","bid_amount"]
[1759566890648,0.25862761,122320.0,122310.0,0.04727528]
[1759566890845,0.25862761,122320.0,122310.0,0.06516115]
[1759566891250,0.25862761,122320.0,122310.0,0.08969886]
[1759566891868,0.25862761,122320.0,122310.0,0.10605075]
[1759566895578,0.25862761,122320.0,122310.0,0.26956967]
[1759566895802,0.25862761,122320.0,122310.0,0.25321778]
[1759566895991,0.25862761,122320.0,122310.0,0.25723692]
[1759566896610,0.09512206,122320.0,122310.0,0.25723692]
[1759566896819,0.09512206,122320.0,122310.0,0.26125606]
[1759566897694,0.012,122320.0,122310.0,0.54250863]
[1759566897908,0.012,122320.0,122310.0,0.61569821]
[1759566899110,0.003,122320.0,122310.0,0.61469821]
[1759566900134,0.00054707,122330.0,122320.0,0.50350555]
[1759566900343,0.00054707,122330.0,122320.0,0.56213646]
[1759566900527,0.00054707,122330.0,122320.0,0.57515474]
[1759566900936,0.00054707,122330.0,122320.0,0.59968654]
[1759566901350,0.00054707,122330.0,122320.0,0.59666654]
[1759566901580,0.00054707,122330.0,122320.0,0.59966654]
[1759566901790,0.00054707,122330.0,122320.0,0.60268654]
[1759566901993,0.00054707,122330.0,122320.0,0.59464826]
[1759566902397,0.00454707,122330.0,122320.0,0.59464826]
[1759566905462,0.00454707,122330.0,122320.0,0.60276398]
[1759566907500,0.00454707,122330.0,122320.0,0.59464826]
[1759566907719,0.00454707,122330.0,122320.0,0.60267112]
[1759566923314,0.00454707,122330.0,122320.0,0.54404021]
[1759566926419,0.00454707,122330.0,122320.0,0.61722979]
[1759566949437,0.00454707,122330.0,122320.0,0.58184636]
[1759566951911,0.00503766,122330.0,122320.0,0.58184636]
[1759566953047,0.00503766,122330.0,122320.0,0.5738235]
[1759566958539,0.00503766,122330.0,122320.0,0.58752813]
[1759566959491,0.00503766,122330.0,122320.0,0.5288087]
[1759566959707,0.00503766,122330.0,122320.0,0.60199828]
[1759566964141,0.00503766,122330.0,122320.0,0.59897828]
[1759566964338,0.00704766,122330.0,122320.0,0.59897828]
[1759566964740,0.00503766,122330.0,122320.0,0.59897828]
[1759566964912,0.00503766,122330.0,122320.0,0.60211828]
[1759566966134,0.00503766,122330.0,122320.0,0.59897828]
[1759566966536,0.00503766,122330.0,122320.0,0.60211828]
[1759566968322,0.00503766,122330.0,122320.0,0.58527365]
[1759566968589,0.01004766,122330.0,122320.0,0.58331365]
[1759566969089,0.00704766,122330.0,122320.0,0.58537365]
[1759566969510,0.00503766,122330.0,122320.0,0.58537365]
[1759566969944,0.00503766,122330.0,122320.0,0.58851365]
[1759566970807,0.00503766,122330.0,122320.0,0.60195807]
[1759566973245,0.00503766,122330.0,122320.0,0.59881807]
[1759566973456,0.00503766,122330.0,122320.0,0.58537365]
[1759566973659,0.00503766,122330.0,122320.0,0.598521]
[1759566974423,0.00503766,122330.0,122320.0,0.601661]
[1759566976114,0.00503766,122330.0,122320.0,0.598521]
[1759566977568,0.00503766,122330.0,122320.0,0.601661]
[1759566986691,0.01004766,122330.0,122320.0,0.58331365]
[1759566987628,0.01004766,122330.0,122320.0,0.59680758]
[1759566987926,0.01004766,122330.0,122320.0,0.58331365]
[1759566988364,0.01004766,122330.0,122320.0,0.58537365]
[1759566988611,0.00704766,122330.0,122320.0,0.58537365]
[1759566989486,0.00503766,122330.0,122320.0,0.58537365]
[1759566989684,0.00699766,122330.0,122320.0,0.58537365]
[1759566991878,0.00699766,122330.0,122320.0,0.59907633]
[1759566992763,0.00503766,122330.0,122320.0,0.59907633]
[1759566994719,0.00503766,122330.0,122320.0,0.60221633]
[1759566999827,0.01003766,122330.0,122320.0,0.58331365]
[1759567000061,0.27036797,122330.0,122320.0,0.10072138]
[1759567000257,0.27036797,122330.0,122320.0,0.07618958]
[1759567000465,0.25665191,122330.0,122320.0,0.07618958]
[1759567000664,0.25665191,122330.0,122320.0,0.06174049]
[1759567001856,0.25665191,122330.0,122320.0,0.08627481]
[1759567004375,0.09315972,122330.0,122320.0,0.24978036]
[1759567004578,0.10946372,122330.0,122320.0,0.24978036]
[1759567005404,0.27295591,122330.0,122320.0,0.24978036]
[1759567005604,0.25665191,122330.0,122320.0,0.24978036]
[1759567006100,0.25665191,122330.0,122320.0,0.08627481]
[1759567006504,0.09315972,122330.0,122320.0,0.24978036]
[1759567006696,0.10946372,122330.0,122320.0,0.25192036]
[1759567007100,0.10446372,122330.0,122320.0,0.25192036]
[1759567007304,0.00503766,122330.0,122320.0,0.25192036]
[1759567007458,0.00503766,122330.0,122320.0,0.20143419]
[1759567009977,0.00503766,122330.0,122320.0,0.26011587]
[1759567010896,0.00503766,122330.0,122320.0,0.20143419]
[1759567012508,0.00503766,122330.0,122320.0,0.26011711]
[1759567014327,0.00503766,122330.0,122320.0,0.20143419]
[1759567015564,0.00503766,122330.0,122320.0,0.19631987]
[1759567019220,0.00503766,122330.0,122320.0,0.19317987]
[1759567020073,0.00503766,122330.0,122320.0,0.19637987]
[1759567020716,0.00503766,122330.0,122320.0,0.00534]
[1759567020918,0.00503766,122330.0,122320.0,0.2097293]
[1759567021172,0.00503766,122330.0,122320.0,0.19017875]
[1759567021823,0.00503766,122330.0,122320.0,0.19337875]
[1759567023254,0.00503766,122330.0,122320.0,0.19017875]
[1759567023696,0.00503766,122330.0,122320.0,0.19337875]
[1759567024294,0.01021766,122330.0,122320.0,0.18803875]
[1759567024498,0.01021766,122330.0,122320.0,0.0245332]
[1759567024760,0.17370985,122330.0,122320.0,0.06856691]
[1759567025812,0.01021766,122330.0,122320.0,0.06856691]
[1759567026765,0.01021766,122330.0,122320.0,0.23207246]
[1759567027913,0.17370985,122330.0,122320.0,0.06856691]
[1759567029535,0.17370985,122330.0,122320.0,0.23207246]
[1759567030821,0.17370985,122330.0,122320.0,0.08321889]
[1759567032124,0.25683191,122330.0,122320.0,0.05868569]
[1759567035596,0.25683191,122330.0,122320.0,0.07503624]
[1759567036661,0.25683191,122330.0,122320.0,0.05868569]
[1759567037440,0.16350555,122320.0,122310.0,0.24694229]
[1759567037632,0.16868555,122320.0,122310.0,0.24694229]
[1759567038745,0.25180761,122320.0,122310.0,0.08342417]
[1759567039533,0.25180761,122320.0,122310.0,0.08742417]
[1759567043718,0.25180761,122320.0,122310.0,0.25094309]
[1759567044370,0.25180761,122320.0,122310.0,0.08742417]
[1759567051840,0.25180761,122320.0,122310.0,0.25094309]
[1759567056201,0.25180761,122320.0,122310.0,0.08742417]
[1759567057015,0.25180761,122320.0,122310.0,0.004]
[1759567066977,0.25180761,122320.0,122310.0,0.03542417]
[1759567076383,0.27634414,122320.0,122310.0,0.03542417]
[1759567076841,0.27634414,122320.0,122310.0,0.004]
[1759567083042,0.30649604,122320.0,122310.0,0.004]
[1759567089003,0.16351892,122310.0,122300.0,0.03162417]
[1759567089338,0.24983098,122310.0,122300.0,0.03162417]
[1759567089542,0.25186098,122310.0,122300.0,0.03162417]
[1759567090295,0.25386098,122310.0,122300.0,0.03262417]
[1759567091723,0.25386098,122310.0,122300.0,0.03472417]
[1759567092051,0.25386098,122310.0,122300.0,0.03262417]
[1759567093838,0.27840084,122310.0,122300.0,0.03262417]
[1759567094665,0.27840084,122310.0,122300.0,0.0328279]
[1759567104053,0.27521084,122310.0,122300.0,0.0349279]
[1759567104742,0.27840084,122310.0,122300.0,0.0328279]
[1759567128304,0.27840084,122310.0,122300.0,0.00140373]
[1759567131039,0.25386098,122310.0,122300.0,0.00140373]
[1759567133153,0.16353229,122300.0,122280.0,0.4463672]
[1759567133423,0.24665435,122300.0,122280.0,0.60989676]
[1759567133704,0.24963435,122300.0,122280.0,0.60989676]
[1759567134411,0.24963435,122300.0,122280.0,0.61689676]
[1759567134834,0.24963435,122300.0,122280.0,0.61989676]
[1759567137248,0.16354567,122290.0,122280.0,0.61989676]
[1759567137472,0.16354567,122290.0,122280.0,0.62184676]
[1759567138334,0.16354567,122290.0,122280.0,0.61884676]
[1759567138555,0.16354567,122290.0,122280.0,0.62189595]
[1759567139839,0.16354567,122290.0,122280.0,0.61489595]
[1759567140121,0.16354567,122290.0,122280.0,0.62089595]
[1759567140302,0.16354567,122290.0,122280.0,0.62130352]
[1759567143115,0.16354567,122290.0,122280.0,0.63571438]
[1759567144249,0.24963435,122300.0,122280.0,0.63571438]
[1759567144453,0.24963435,122300.0,122290.0,0.05877783]
[1759567144660,0.25163435,122300.0,122290.0,0.06084783]
[1759567147342,0.25163435,122300.0,122290.0,0.06384783]
[1759567149667,0.25163435,122300.0,122290.0,0.0640516]
[1759567150089,0.25163435,122300.0,122290.0,0.0619816]
[1759567150882,0.25163435,122300.0,122290.0,0.22552727]
[1759567152251,0.24865435,122300.0,122290.0,0.22759727]
[1759567153257,0.25187435,122300.0,122290.0,0.22759727]
[1759567155376,0.24865435,122300.0,122290.0,0.22759727]
[1759567157208,0.25187435,122300.0,122290.0,0.22759727]
[1759567158802,0.25187435,122300.0,122290.0,0.0619816]
[1759567159472,0.25187435,122300.0,122290.0,0.22552727]
[1759567160661,0.25187435,122300.0,122290.0,0.16674944]
[1759567161064,0.25187435,122300.0,122290.0,0.16881944]
[1759567162313,0.25187435,122300.0,122290.0,0.16674944]
[1759567162523,0.25187435,122300.0,122290.0,0.00320377]
[1759567163524,0.25187435,122300.0,122290.0,0.00527377]
[1759567163722,0.25187435,122300.0,122290.0,0.06408277]
[1759567164342,0.25187435,122300.0,122290.0,0.06201277]
[1759567165059,0.25187435,122300.0,122290.0,0.22555844]
[1759567165510,0.25187435,122300.0,122290.0,0.06201277]
[1759567166961,0.25187435,122300.0,122290.0,0.22555844]
[1759567170670,0.25187435,122300.0,122290.0,0.16674944]
[1759567176553,0.25187435,122300.0,122290.0,0.00320377]
[1759567178275,0.25187435,122300.0,122290.0,0.06201741]
[1759567194921,0.28202625,122300.0,122290.0,0.06201741]
[1759567195130,0.30657057,122300.0,122290.0,0.04730724]
[1759567195775,0.39078464,122300.0,122290.0,0.04730724]
[1759567195975,0.30657057,122300.0,122290.0,0.04730724]
[1759567196512,0.30657057,122300.0,122290.0,0.00320377]
[1759567197577,0.30657057,122300.0,122290.0,0.00020377]
[1759567197784,0.30657057,122300.0,122290.0,0.00320377]
[1759567198417,0.30657057,122300.0,122290.0,0.00020377]
[1759567198597,0.31157057,122300.0,122290.0,0.00020377]
[1759567199002,0.31357057,122300.0,122290.0,0.00020377]
[1759567200360,0.16356237,122280.0,122270.0,0.04405461]
[1759567200573,0.24876346,122280.0,122270.0,0.04405461]
[1759567200777,0.25174346,122280.0,122270.0,0.04405461]
[1759567201183,0.2762884,122280.0,122270.0,0.04405461]
[1759567201975,0.2762884,122280.0,122270.0,0.04705461]
[1759567202859,0.2733084,122280.0,122270.0,0.04917461]
[1759567203063,0.33125767,122280.0,122270.0,0.04917461]
[1759567203310,0.33626767,122280.0,122270.0,0.04705461]
[1759567205948,0.33626767,122280.0,122270.0,0.04746223]
[1759567208069,0.33125767,122280.0,122270.0,0.21633465]
[1759567208266,0.33125434,122280.0,122270.0,0.21633465]
[1759567208476,0.1676953,122280.0,122270.0,0.21736427]
[1759567209568,4.903e-05,122280.0,122270.0,0.17330966]
[1759567209926,4.903e-05,122280.0,122270.0,0.19785225]
[1759567210482,4.903e-05,122280.0,122270.0,0.25653946]
[1759567210976,4.903e-05,122280.0,122270.0,0.19785225]
[1759567214055,4.903e-05,122280.0,122270.0,0.53785225]
[1759567214264,4.903e-05,122280.0,122270.0,0.61104183]
[1759567216323,4.903e-05,122280.0,122270.0,0.61001221]
[1759567217119,4.903e-05,122280.0,122270.0,0.61199817]
[1759567226254,0.00505903,122280.0,122270.0,0.60471221]
[1759567226482,0.00505903,122280.0,122270.0,0.19350807]
[1759567226722,0.00505903,122280.0,122270.0,0.2522239]
[1759567227209,0.16861807,122280.0,122270.0,0.08865148]
[1759567227448,0.16861807,122280.0,122270.0,0.25023846]
[1759567227693,0.25174013,122280.0,122270.0,0.06212345]
[1759567228160,0.27628584,122280.0,122270.0,0.00340762]
[1759567228879,0.27628584,122280.0,122270.0,0.00040762]
[1759567229301,0.27628584,122280.0,122270.0,0.00340762]
[1759567230287,0.27628584,122280.0,122270.0,0.00040762]
[1759567230498,0.27828584,122280.0,122270.0,0.00040762]
[1759567230791,0.27828584,122280.0,122270.0,0.00140762]
[1759567242189,0.25374013,122280.0,122270.0,0.00140762]
[1759567243825,0.27828676,122280.0,122270.0,0.00140762]
[1759567246443,0.25374013,122280.0,122270.0,0.00140762]
[1759567251251,0.2782877,122280.0,122270.0,0.00140762]
[1759567251943,0.3224712,122280.0,122270.0,0.00140762]
[1759567252398,0.3526231,122280.0,122270.0,0.00140762]
[1759567252800,0.3084396,122280.0,122270.0,0.00140762]
[1759567253804,0.3064396,122280.0,122270.0,0.00140762]
[1759567254226,0.3064396,122280.0,122270.0,0.00040762]
[1759567254431,0.3114396,122280.0,122270.0,0.00040762]
[1759567255097,0.3124396,122280.0,122270.0,0.00040762]
[1759567255322,0.36003829,122280.0,122270.0,0.00040762]
[1759567255524,0.35903829,122280.0,122270.0,0.00040762]
[1759567255728,0.1635858,122260.0,122240.0,0.51005204]
[1759567255928,0.1635858,122260.0,122240.0,0.37809336]
[1759567255929,0.09942606,122250.0,122240.0,0.37809336]
[1759567256155,0.09942606,122250.0,122240.0,0.38005336]
[1759567256596,0.26500524,122250.0,122240.0,0.38005336]
[1759567256801,0.24870124,122250.0,122240.0,0.38005336]
[1759567257007,0.24870124,122250.0,122240.0,0.38366499]
[1759567257417,0.08510206,122250.0,122240.0,0.38366499]
[1759567257601,0.26500524,122250.0,122240.0,0.21487533]
[1759567257775,0.26500524,122250.0,122240.0,0.37848789]
[1759567257776,0.24870124,122250.0,122240.0,0.37848789]
[1759567258188,0.24870124,122250.0,122240.0,0.37248789]
[1759567258385,0.24870124,122250.0,122240.0,0.37548789]
[1759567258598,0.24870124,122250.0,122240.0,0.37848789]
[1759567258795,0.30940068,122250.0,122240.0,0.37848789]
[1759567259038,0.1458015,122250.0,122240.0,0.37848789]
[1759567259199,0.1621055,122250.0,122240.0,0.37848789]
[1759567260156,0.1650655,122250.0,122240.0,0.37848789]
[1759567260779,0.32866468,122250.0,122240.0,0.37652789]
[1759567260918,0.31236068,122250.0,122240.0,0.37652789]
[1759567261545,0.31236068,122250.0,122240.0,0.37863789]
[1759567262150,0.30940068,122250.0,122240.0,0.37863789]
[1759567262808,0.30940068,122250.0,122240.0,0.37652789]
[1759567263016,0.31236068,122250.0,122240.0,0.37652789]
[1759567263448,0.31236068,122250.0,122240.0,0.37863789]
[1759567263663,0.30940068,122250.0,122240.0,0.37863789]
[1759567264132,0.31236068,122250.0,122240.0,0.21291533]
[1759567264556,0.31236068,122250.0,122240.0,0.21502533]
[1759567265016,0.31236068,122250.0,122240.0,0.37863789]
[1759567265222,0.30940068,122250.0,122240.0,0.37863789]
[1759567265453,0.31236068,122250.0,122240.0,0.21291533]
[1759567265669,0.31236068,122250.0,122240.0,0.27169924]
[1759567271428,0.31236068,122250.0,122240.0,0.21291533]
[1759567276169,0.31236068,122250.0,122240.0,0.27169924]
[1759567277608,0.31236068,122250.0,122240.0,0.21291533]
[1759567277814,0.31236068,122250.0,122240.0,0.04253849]
[1759567279057,0.3369132,122250.0,122240.0,0.04253849]
[1759567281919,0.3369132,122250.0,122240.0,0.03953849]
[1759567282114,0.3369132,122250.0,122240.0,0.03653849]
[1759567282529,0.3419132,122250.0,122240.0,0.03653849]
[1759567294044,0.3369732,122250.0,122240.0,0.03851849]
[1759567294292,0.3369732,122250.0,122240.0,0.04166849]
[1759567295470,0.3369732,122250.0,122240.0,0.03851849]
[1759567300843,0.3390032,122250.0,122240.0,0.03851849]
[1759567303916,0.17337402,122250.0,122240.0,0.04329725]
[1759567304358,0.17337402,122250.0,122240.0,0.0953224]
[1759567304359,0.3420932,122250.0,122240.0,0.0953224]
[1759567304772,0.3420932,122250.0,122240.0,0.03653849]
[1759567304976,0.3390032,122250.0,122240.0,0.03851849]
[1759567305188,0.3420932,122250.0,122240.0,0.0973024]
[1759567305322,0.3420932,122250.0,122240.0,0.0953224]
[1759567306734,0.3420932,122250.0,122240.0,0.03653849]
[1759567319976,0.3390032,122250.0,122240.0,0.03864849]
[1759567320205,0.3369732,122250.0,122240.0,0.03864849]
[1759567320319,0.3369732,122250.0,122230.0,0.19335939]
[1759567320320,0.3390032,122250.0,122230.0,0.19335939]
[1759567320526,0.3390032,122250.0,122230.0,0.19020939]
[1759567320742,0.00304,122240.0,122230.0,0.19020939]
[1759567320950,0.08819206,122240.0,122230.0,0.19020939]
[1759567321153,0.25180462,122240.0,122230.0,0.19021013]
[1759567321368,0.25180462,122240.0,122230.0,0.0267881]
[1759567321569,0.25180462,122240.0,122230.0,0.04315069]
[1759567321777,0.25180462,122240.0,122230.0,0.02683718]
[1759567322624,0.25180462,122240.0,122230.0,0.02783718]
[1759567323263,0.25180462,122240.0,122230.0,0.19046313]
[1759567323678,0.25180462,122240.0,122230.0,0.19146313]
[1759567324597,0.24673462,122240.0,122230.0,0.19345313]
[1759567324802,0.08312206,122240.0,122230.0,0.19345313]
[1759567325215,0.24673462,122240.0,122230.0,0.19345313]
[1759567327472,0.24876462,122240.0,122230.0,0.19345313]
[1759567329031,0.25180462,122240.0,122230.0,0.02783718]
[1759567330267,0.25180462,122240.0,122230.0,0.08662109]
[1759567336713,0.16362595,122230.0,122220.0,0.39796811]
[1759567336953,0.25186702,122230.0,122220.0,0.26591895]
[1759567338245,0.25186702,122230.0,122220.0,0.27191895]
[1759567342421,0.25186702,122230.0,122220.0,0.2721229]
[1759567343272,0.25186702,122230.0,122220.0,0.08846824]
[1759567345371,0.25186702,122230.0,122220.0,0.25409757]
[1759567345547,0.24882702,122230.0,122220.0,0.25409757]
[1759567345751,0.24679702,122230.0,122220.0,0.25409757]
[1759567348958,0.24679702,122230.0,122220.0,0.25534757]
[1759567349826,0.08317107,122230.0,122220.0,0.25534757]
[1759567350032,0.09947507,122230.0,122220.0,0.25534757]
[1759567350170,0.26310102,122230.0,122220.0,0.25534757]
[1759567350362,0.24679702,122230.0,122220.0,0.25534757]
[1759567350779,0.08317107,122230.0,122220.0,0.25534757]
[1759567351033,0.09947507,122230.0,122220.0,0.25534757]
[1759567351394,0.26310102,122230.0,122220.0,0.25534757]
[1759567351680,0.24679702,122230.0,122220.0,0.25534757]
[1759567351865,0.08317107,122230.0,122220.0,0.25534757]
[1759567352066,0.09947507,122230.0,122220.0,0.25534757]
[1759567352495,0.26310102,122230.0,122220.0,0.25409757]
[1759567352638,0.24679702,122230.0,122220.0,0.25409757]
[1759567353347,0.24679702,122230.0,122220.0,0.31289193]
[1759567353573,0.08317107,122230.0,122220.0,0.31289193]
[1759567353740,0.09947507,122230.0,122220.0,0.31289193]
[1759567353987,0.10163507,122230.0,122220.0,0.31090193]
[1759567354172,0.10472507,122230.0,122220.0,0.31090193]
[1759567355013,0.10163507,122230.0,122220.0,0.31289193]
[1759567356420,0.10472507,122230.0,122220.0,0.31090193]
[1759567357276,0.09947507,122230.0,122220.0,0.31289193]
[1759567358858,0.10163507,122230.0,122220.0,0.31289193]
[1759567359245,0.10472507,122230.0,122220.0,0.31289193]
[1759567359439,0.26835102,122230.0,122220.0,0.31289193]
[1759567359662,0.25204702,122230.0,122220.0,0.31289193]
[1759567360519,0.08842107,122230.0,122220.0,0.31289193]
[1759567360657,0.10472507,122230.0,122220.0,0.31289193]
[1759567361468,0.10472507,122230.0,122220.0,0.31090193]
[1759567362124,0.10472507,122230.0,122220.0,0.31289193]
[1759567362958,0.12927945,122230.0,122220.0,0.31289193]
[1759567364265,0.2929054,122230.0,122220.0,0.31289193]
[1759567364466,0.2766014,122230.0,122220.0,0.31289193]
[1759567367413,0.2766014,122230.0,122220.0,0.31090193]
[1759567369542,0.2766014,122230.0,122220.0,0.1472626]
[1759567370445,0.11297545,122230.0,122220.0,0.31090193]
[1759567370651,0.12927945,122230.0,122220.0,0.31090193]
[1759567371519,0.2929054,122230.0,122220.0,0.31090193]
[1759567371701,0.2766014,122230.0,122220.0,0.1472626]
[1759567392854,0.2766014,122230.0,122220.0,0.31090193]
[1759567393073,0.2713514,122230.0,122220.0,0.31289193]
[1759567394552,0.10772545,122230.0,122220.0,0.31289193]
[1759567394759,0.12402945,122230.0,122220.0,0.31289193]
[1759567404721,0.12616945,122230.0,122220.0,0.31289193]
[1759567404898,0.12616945,122230.0,122220.0,0.1472626]
[1759567404899,0.2930254,122230.0,122220.0,0.1472626]
[1759567405105,0.2767214,122230.0,122220.0,0.1472626]
[1759567415359,0.70582092,122230.0,122220.0,0.1472626]
[1759567416635,0.70582092,122230.0,122220.0,0.08846824]
[1759567416818,0.70582092,122230.0,122220.0,0.08546824]
[1759567417041,0.70582092,122230.0,122220.0,0.08246824]
[1759567417237,0.71182092,122230.0,122220.0,0.08246824]
[1759567418230,0.2827214,122230.0,122220.0,0.08246824]
[1759567418439,0.71182092,122230.0,122220.0,0.08246824]
[1759567420004,0.2827214,122230.0,122220.0,0.08246824]
[1759567420240,0.72125539,122230.0,122220.0,0.08246824]
[1759567420863,0.71182092,122230.0,122220.0,0.08246824]
[1759567421074,0.2827214,122230.0,122220.0,0.08246824]
[1759567421287,0.71182092,122230.0,122220.0,0.08246824]
[1759567422066,0.2827214,122230.0,122220.0,0.08246824]
[1759567422482,0.71182092,122230.0,122220.0,0.08246824]
[1759567424714,0.2827214,122230.0,122220.0,0.08246824]
[1759567424920,0.71182092,122230.0,122220.0,0.08246824]
[1759567425398,0.2827214,122230.0,122220.0,0.08246824]
[1759567425594,0.71182092,122230.0,122220.0,0.08246824]
[1759567426353,0.2827214,122230.0,122220.0,0.08246824]
[1759567426560,0.71182092,122230.0,122220.0,0.08246824]
[1759567427122,0.2794914,122230.0,122220.0,0.08445824]
[1759567427287,0.11372545,122230.0,122220.0,0.2644615]
[1759567427488,0.2936554,122230.0,122220.0,0.24809757]
[1759567427694,0.2773514,122230.0,122220.0,0.24809757]
[1759567432624,0.11372545,122230.0,122220.0,0.24934757]
[1759567432847,0.13002945,122230.0,122220.0,0.24934757]
[1759567433596,0.2936554,122230.0,122220.0,0.24934757]
[1759567433803,0.2773514,122230.0,122220.0,0.30814193]
[1759567434101,0.11372545,122230.0,122220.0,0.30814193]
[1759567434328,0.13002945,122230.0,122220.0,0.30814193]
[1759567438554,0.13002945,122230.0,122220.0,0.30689193]
[1759567440115,0.13002945,122230.0,122220.0,0.1432526]
[1759567442096,0.13209945,122230.0,122220.0,0.1432526]
[1759567442716,0.13002945,122230.0,122220.0,0.30689193]
[1759567443891,0.13002945,122230.0,122220.0,0.30814193]
[1759567445601,0.13002945,122230.0,122220.0,0.30689193]
[1759567446383,0.11372545,122230.0,122220.0,0.30689193]
[1759567447635,0.11372545,122230.0,122220.0,0.30814193]
[1759567449927,0.11372545,122230.0,122220.0,0.30689193]
[1759567450317,0.11372545,122230.0,122220.0,0.30814193]
[1759567454508,0.11372545,122230.0,122220.0,0.30689193]
[1759567454872,0.11372545,122230.0,122220.0,0.30814193]
[1759567458339,0.11579545,122230.0,122220.0,0.30689193]
[1759567458547,0.11372545,122230.0,122220.0,0.30689193]
[1759567459011,0.11372545,122230.0,122220.0,0.30814193]
[1759567460380,0.11372545,122230.0,122220.0,0.30689193]
[1759567460623,0.13002945,122230.0,122220.0,0.30689193]
[1759567461033,0.13518945,122230.0,122220.0,0.30490193]
[1759567461903,0.13209945,122230.0,122220.0,0.30689193]
[1759567462124,0.13518945,122230.0,122220.0,0.30490193]
[1759567462496,0.13518945,122230.0,122220.0,0.30689193]
[1759567462724,0.13209945,122230.0,122220.0,0.30689193]
[1759567462940,0.13002945,122230.0,122220.0,0.30689193]
[1759567464429,0.13518945,122230.0,122220.0,0.30490193]
[1759567464826,0.13209945,122230.0,122220.0,0.30689193]
[1759567465028,0.11372545,122230.0,122220.0,0.30689193]
[1759567465254,0.11372545,122230.0,122220.0,0.30814193]
[1759567466158,0.11372545,122230.0,122220.0,0.30689193]
[1759567469456,0.11372545,122230.0,122220.0,0.30814193]
[1759567470416,0.11372545,122230.0,122220.0,0.30689193]
[1759567470826,0.13002945,122230.0,122220.0,0.30689193]
[1759567471052,0.13002945,122230.0,122220.0,0.30814193]
[1759567471452,0.11372545,122230.0,122220.0,0.30689193]
[1759567472095,0.13002945,122230.0,122220.0,0.30689193]
[1759567473434,0.11372545,122230.0,122220.0,0.30689193]
[1759567474491,0.11372545,122230.0,122220.0,0.30814193]
[1759567476084,0.00604901,122230.0,122220.0,0.25036671]
[1759567476290,0.00604901,122230.0,122220.0,0.3481082]
[1759567477285,0.00304901,122230.0,122220.0,0.3481082]
[1759567477708,0.00304901,122230.0,122220.0,0.3501082]
[1759567478315,4.901e-05,122230.0,122220.0,0.3501082]
[1759567479389,4.901e-05,122230.0,122220.0,0.34908906]
[1759567481424,4.901e-05,122230.0,122220.0,0.35006716]
[1759567482980,4.901e-05,122230.0,122220.0,0.32551525]
[1759567483392,4.901e-05,122230.0,122220.0,0.25232567]
[1759567490505,4.901e-05,122230.0,122220.0,0.05344765]
[1759567490720,4.901e-05,122230.0,122220.0,0.06981158]
[1759567494037,4.901e-05,122230.0,122220.0,0.05344765]
[1759567500529,4.901e-05,122230.0,122220.0,0.12663723]
[1759567502364,4.901e-05,122230.0,122220.0,0.14300116]
[1759567503838,4.901e-05,122230.0,122220.0,0.12538723]
[1759567504455,4.901e-05,122230.0,122220.0,0.12663723]
[1759567505074,4.901e-05,122230.0,122220.0,0.12538723]
[1759567505287,0.00521901,122230.0,122220.0,0.12538723]
[1759567505898,0.00203901,122230.0,122220.0,0.12538723]
[1759567506153,4.901e-05,122230.0,122220.0,0.12538723]
[1759567506611,0.00203901,122230.0,122220.0,0.12538723]
[1759567506987,4.901e-05,122230.0,122220.0,0.12538723]
[1759567507380,0.00203901,122230.0,122220.0,0.12538723]
[1759567507589,4.901e-05,122230.0,122220.0,0.12538723]
[1759567508604,0.00521901,122230.0,122220.0,0.12538723]
[1759567509213,4.901e-05,122230.0,122220.0,0.12538723]
[1759567509624,0.00203901,122230.0,122220.0,0.12538723]
[1759567509776,0.00521901,122230.0,122220.0,0.12538723]
[1759567509987,4.901e-05,122230.0,122220.0,0.12538723]
[1759567510522,4.901e-05,122230.0,122220.0,0.12440913]
[1759567510723,4.901e-05,122230.0,122220.0,0.12565913]
[1759567511275,4.901e-05,122230.0,122220.0,0.12440913]
[1759567511476,4.901e-05,122230.0,122220.0,0.12565913]
[1759567512382,0.00521901,122230.0,122220.0,0.04922955]
[1759567512975,0.00203901,122230.0,122220.0,0.04922955]
[1759567513182,0.00521901,122230.0,122220.0,0.04922955]
[1759567513426,0.00203901,122230.0,122220.0,0.04922955]
[1759567513566,0.00521901,122230.0,122220.0,0.04922955]
[1759567514020,0.00521901,122230.0,122220.0,0.16563933]
[1759567514241,0.08834107,122230.0,122220.0,0.002]
[1759567514533,0.08834107,122230.0,122220.0,0.0608488]
[1759567515524,0.10464507,122230.0,122220.0,0.0608488]
[1759567516928,0.26827102,122230.0,122220.0,0.0608488]
[1759567517107,0.25196702,122230.0,122220.0,0.0608488]
[1759567517780,0.26079437,122230.0,122220.0,0.0608488]
[1759567518831,0.25196702,122230.0,122220.0,0.0608488]
[1759567519690,0.63339907,122230.0,122220.0,0.0608488]
[1759567519903,0.25196702,122230.0,122220.0,0.002]
[1759567522216,0.68119127,122230.0,122220.0,0.002]
[1759567522410,0.69003483,122230.0,122220.0,0.002]
[1759567530481,0.68486483,122230.0,122220.0,0.002]
[1759567530698,0.25193702,122230.0,122220.0,0.002]
[1759567535415,0.68116127,122230.0,122220.0,0.002]
[1759567536204,0.76537534,122230.0,122220.0,0.002]
[1759567537050,0.7899329,122230.0,122220.0,0.002]
[1759567540014,0.36070865,122230.0,122220.0,0.002]
[1759567540226,0.7899329,122230.0,122220.0,0.002]
[1759567541063,0.7899329,122230.0,122220.0,0.00103654]
[1759567542661,0.70571883,122230.0,122220.0,0.00103654]
[1759567544067,0.27649458,122230.0,122220.0,0.00103654]
[1759567544275,0.70571883,122230.0,122220.0,0.00103654]
[1759567545439,0.70571883,122230.0,122220.0,0.04512797]
[1759567547218,0.27649458,122230.0,122220.0,0.04512797]
[1759567547412,0.70571883,122230.0,122220.0,0.04512797]
[1759567547616,0.74895747,122230.0,122220.0,0.04512797]
[1759567548277,0.31973322,122230.0,122220.0,0.04512797]
[1759567548483,0.74895747,122230.0,122220.0,0.04512797]
[1759567548702,0.27649458,122230.0,122220.0,0.04512797]
[1759567549146,0.70571883,122230.0,122220.0,0.04512797]
[1759567551171,0.27649458,122230.0,122220.0,0.04512797]
[1759567551367,0.70571883,122230.0,122220.0,0.04512797]
[1759567552002,0.27649458,122230.0,122220.0,0.04512797]
[1759567552205,0.70571883,122230.0,122220.0,0.04512797]
[1759567556139,0.70671883,122230.0,122220.0,0.04512797]
[1759567556366,0.70671883,122230.0,122220.0,0.04409143]
[1759567556573,0.27749458,122230.0,122220.0,0.04409143]
[1759567556789,0.16363933,122220.0,122210.0,0.09004654]
[1759567557007,0.25190139,122220.0,122210.0,0.09004654]
[1759567557606,0.27646006,122220.0,122210.0,0.09004654]
[1759567558028,0.27347006,122220.0,122210.0,0.09403654]
[1759567558401,0.27646006,122220.0,122210.0,0.09403654]
[1759567558603,0.27646006,122220.0,122210.0,0.09204654]
[1759567559676,0.27646006,122220.0,122210.0,0.09404654]
[1759567560262,0.54506006,122220.0,122210.0,0.09404654]
[1759567560679,0.60510559,122220.0,122210.0,0.09404654]
[1759567562504,0.60510559,122220.0,122210.0,0.09425051]
[1759567564482,1.03432984,122220.0,122210.0,0.09425051]
[1759567565262,0.60510559,122220.0,122210.0,0.09425051]
[1759567565454,1.03432984,122220.0,122210.0,0.09425051]